fUST/lending_fUST_20250106
["ID","MTS","AMOUNT","RATE_DAILY","PERIOD"]
[347836093,1736145063195,-500.0,0.00020292,3]
[347836094,1736145063213,-500.0,0.00020292,3]
[347836095,1736145063233,-238.08,0.00020292,3]
[347836096,1736145063247,-500.0,0.00020292,3]
[347836097,1736145063264,-500.0,0.00020293,3]
[347836098,1736145063282,-370.54,0.00020293,3]
[347836099,1736145063302,-500.0,0.00020293,3]
[347836100,1736145063316,-500.0,0.00020293,3]
[347836101,1736145063335,-500.0,0.00020293,3]
[347836102,1736145063350,-500.0,0.00020293,3]
[347836103,1736145063367,-558.17594409,0.00020293,3]
[347836104,1736145063380,-500.0,0.00020293,3]
[347836105,1736145063395,-500.0,0.00020293,3]
[347836106,1736145063409,-351.84813095,0.00020293,3]
[347836107,1736145063425,-500.0,0.00020293,3]
[347836108,1736145063440,-500.0,0.00020293,3]
[347836109,1736145063456,-500.0,0.00020293,3]
[347836110,1736145063470,-500.0,0.00020293,3]
[347836111,1736145063485,-500.0,0.00020293,3]
[347836113,1736145063499,-572.96,0.00020293,3]
[347836115,1736145063514,-506.69220242,0.00020293,3]
[347836118,1736145063528,-500.0,0.00020293,3]
[347836120,1736145063543,-500.0,0.00020293,3]
[347836123,1736145063559,-500.0,0.00020293,3]
[347836124,1736145063569,-500.0,0.00020293,3]
[347836125,1736145063579,-500.0,0.00020293,3]
[347836126,1736145063590,-500.0,0.00020293,3]
[347836128,1736145063600,-570.41768047,0.00020293,3]
[347836129,1736145063610,-500.0,0.00020293,3]
[347836130,1736145063620,-500.0,0.00020293,3]
[347836131,1736145063629,-500.0,0.00020293,3]
[347836132,1736145063639,-500.0,0.00020293,3]
[347836133,1736145063649,-500.0,0.00020293,3]
[347836134,1736145063659,-301.43684276,0.00020293,3]
[347836135,1736145063669,-500.0,0.00020293,3]
[347836136,1736145063679,-500.0,0.00020293,3]
[347836137,1736145063690,-500.0,0.00020293,3]
[347836138,1736145063699,-500.0,0.00020293,3]
[347836139,1736145063709,-500.0,0.00020293,3]
[347836140,1736145063720,-500.0,0.00020293,3]
[347836141,1736145063730,-500.0,0.00020293,3]
[347836142,1736145063740,-500.0,0.00020293,3]
[347836143,1736145063751,-504.60169124,0.00020293,3]
[347836144,1736145063761,-500.0,0.00020293,3]
[347836145,1736145063771,-500.0,0.00020293,3]
[347836146,1736145063781,-23147.89,0.00020293,3]
[347836147,1736145063792,-500.0,0.00020293,3]
[347836148,1736145063802,-500.0,0.00020293,3]
[347836149,1736145063812,-500.0,0.00020293,2]
[347836150,1736145063822,-353.17,0.00020293,3]
[347836151,1736145063832,-5034.56,0.00020293,3]
[347836152,1736145064061,-500.0,0.00020293,3]
[347836153,1736145064075,-500.0,0.00020293,3]
[347836154,1736145064085,-464.8602915,0.00020295,3]
[347836155,1736145064095,-747.57,0.00020295,3]
[347836156,1736145064105,-565.6,0.00020295,3]
[347836157,1736145064117,-381.74492361,0.00020295,3]
[347836158,1736145064128,-500.0,0.00020295,3]
[347836159,1736145064139,-500.0,0.00020295,3]
[347836160,1736145064149,-500.0,0.00020295,3]
[347836161,1736145064162,-500.0,0.00020295,3]
[347836162,1736145064172,-500.0,0.00020295,3]
[347836163,1736145064182,-500.0,0.00020295,3]
[347836164,1736145064192,-500.0,0.00020295,3]
[347836165,1736145064204,-500.0,0.00020295,3]
[347836166,1736145064214,-500.0,0.00020295,3]
[347836167,1736145064223,-500.0,0.00020295,3]
[347836168,1736145064234,-500.0,0.00020295,3]
[347836169,1736145064245,-500.0,0.00020295,3]
[347836170,1736145064256,-500.0,0.00020295,3]
[347836171,1736145064266,-500.0,0.00020295,3]
[347836173,1736145064277,-500.0,0.00020295,3]
[347836175,1736145064287,-3082.42,0.00020295,3]
[347836177,1736145064296,-893.68,0.00020295,3]
[347836179,1736145064307,-2534.35,0.00020295,3]
[347836181,1736145064317,-500.0,0.00020295,3]
[347836183,1736145064326,-500.0,0.00020295,3]
[347836185,1736145064336,-500.0,0.00020295,3]
[347836187,1736145064345,-601.24,0.00020295,3]
[347836189,1736145064355,-500.0,0.00020295,3]
[347836191,1736145064366,-2316.72,0.00020295,3]
[347836193,1736145064375,-500.0,0.00020295,3]
[347836195,1736145064385,-500.0,0.00020295,3]
[347836197,1736145064395,-229.11,0.00020295,3]
[347836199,1736145064405,-506.39599227,0.00020295,3]
[347836201,1736145064416,-807.1,0.00020295,3]
[347836203,1736145064426,-500.0,0.00020295,3]
[347836205,1736145064436,-219.346501,0.00020309,2]
[347836207,1736145064446,-504.48160459,0.00020312,3]
[347836209,1736145064456,-500.0,0.00020312,3]
[347836211,1736145064466,-1000.0,0.00020312,3]
[347836212,1736145064476,-500.0,0.00020312,3]
[347836213,1736145064486,-500.0,0.00020312,3]
[347836214,1736145064495,-500.0,0.00020312,3]
[347836215,1736145064504,-500.0,0.00020312,2]
[347836216,1736145064514,-500.0,0.00020312,3]
[347836217,1736145064523,-500.0,0.00020312,3]
[347836218,1736145064533,-500.0,0.00020312,3]
[347836219,1736145064543,-474.74373504,0.00020312,3]
[347836220,1736145064552,-508.9446326,0.00020312,3]
[347836221,1736145064562,-448.08442671,0.00020312,3]
[347836222,1736145064572,-500.0,0.00020312,3]
[347836223,1736145064581,-500.0,0.00020312,3]
[347836224,1736145064590,-500.0,0.00020312,3]
[347836225,1736145064599,-500.0,0.00020312,3]
[347836226,1736145064609,-500.0,0.00020312,3]
[347836227,1736145064619,-500.0,0.00020312,3]
[347836228,1736145064628,-500.0,0.00020312,3]
[347836229,1736145064638,-500.0,0.00020312,3]
[347836230,1736145064647,-500.0,0.00020312,3]
[347836231,1736145064657,-513.28845624,0.00020312,3]
[347836232,1736145064668,-500.0,0.00020312,3]
[347836233,1736145064677,-500.0,0.00020312,3]
[347836234,1736145064687,-187523.92146042,0.00020314,5]
[347836334,1736145353470,176.213372,0.00013973,2]
[347836341,1736146016158,-237.89262303,0.0001689,2]
[347836343,1736146054133,-170.89298924,0.0001689,2]
[347836344,1736146054156,-1094.83636977,0.00016961,2]
[347836345,1736146054180,-2236.17516483,0.00017061,2]
[347836346,1736146054203,-1094.83636972,0.00017065,2]
[347836347,1736146054226,-1094.83636972,0.0001717,2]
[347836348,1736146054247,-1094.83636972,0.00017274,2]
[347836349,1736146054271,-1419.8419393,0.0001728,2]
[347836350,1736146054292,-1094.83636972,0.00017379,2]
[347836351,1736146054315,-1094.83636972,0.00017483,2]
[347836352,1736146054337,-154.92253873,0.00017583,2]
[347836353,1736146054360,-836.86910714,0.0001784,2]
[347836354,1736146054385,-2492.79639133,0.0001784,2]
[347836355,1736146054407,-210.967286,0.00017949,2]
[347836356,1736146054430,-8223.8507069,0.00018041,2]
[347836357,1736146054452,-159.89239171,0.00018304,2]
[347836358,1736146054473,-196.4229951,0.00018691,2]
[347836359,1736146054495,-1224.35981621,0.000189,2]
[347836360,1736146054516,-307.018901,0.00018959,2]
[347836361,1736146054537,-254.8796306,0.00019078,2]
[347836362,1736146054558,-446.12652673,0.00019078,2]
[347836363,1736146054580,-151.0,0.00019166,2]
[347836364,1736146054600,-322.315,0.00019177,2]
[347836365,1736146054621,-217.45552725,0.00019177,2]
[347836366,1736146054644,-500.0,0.00019177,2]
[347836367,1736146054669,-319.50727819,0.00019177,2]
[347836368,1736146054692,-232.83857362,0.00019177,2]
[347836369,1736146054713,-500.0,0.00019178,2]
[347836370,1736146054735,-500.0,0.00019178,2]
[347836371,1736146054756,-500.0,0.00019178,2]
[347836372,1736146054777,-516.08,0.00019178,2]
[347836373,1736146054797,-500.0,0.00019178,2]
[347836374,1736146054818,-500.0,0.00019178,2]
[347836375,1736146054839,-500.0,0.00019178,2]
[347836376,1736146054860,-500.0,0.00019178,2]
[347836377,1736146054885,-500.0,0.00019178,2]
[347836378,1736146054908,-181.88181001,0.00019178,2]
[347836379,1736146054929,-696.96,0.00019178,2]
[347836380,1736146054949,-500.0,0.00019178,2]
[347836381,1736146054972,-500.0,0.00019178,2]
[347836382,1736146054994,-500.0,0.00019178,5]
[347836383,1736146055014,-500.0,0.00019178,2]
[347836384,1736146055035,-500.0,0.00019178,2]
[347836385,1736146055056,-500.0,0.00019178,2]
[347836386,1736146055076,-500.0,0.00019178,2]
[347836387,1736146055096,-426.01,0.00019178,2]
[347836388,1736146055117,-500.0,0.00019178,2]
[347836389,1736146055138,-509.32728664,0.00019178,2]
[347836390,1736146055158,-500.0,0.00019178,2]
[347836391,1736146055180,-500.0,0.00019178,2]
[347836392,1736146055200,-500.0,0.00019178,2]
[347836393,1736146055222,-508.76,0.00019178,2]
[347836394,1736146055245,-500.0,0.00019178,2]
[347836395,1736146055267,-500.0,0.00019178,2]
[347836396,1736146055288,-2440.25,0.00019178,2]
[347836397,1736146055310,-500.0,0.00019178,2]
[347836398,1736146055331,-790.14,0.00019178,2]
[347836399,1736146055353,-500.0,0.00019178,2]
[347836400,1736146055373,-500.0,0.00019178,2]
[347836401,1736146055395,-500.0,0.00019178,2]
[347836402,1736146055416,-500.0,0.00019178,2]
[347836403,1736146055438,-500.0,0.00019178,2]
[347836404,1736146055458,-500.0,0.00019178,2]
[347836405,1736146055478,-500.0,0.00019178,2]
[347836406,1736146055499,-500.0,0.00019178,2]
[347836407,1736146055519,-646.64,0.00019178,2]
[347836408,1736146055540,-500.0,0.00019178,2]
[347836409,1736146055560,-539.99,0.00019178,2]
[347836410,1736146055580,-578.19,0.00019178,2]
[347836411,1736146055604,-735.0,0.00019178,2]
[347836412,1736146055627,-500.0,0.00019178,2]
[347836413,1736146055648,-500.0,0.00019178,2]
[347836414,1736146055672,-500.0,0.00019178,2]
[347836415,1736146055694,-584.77,0.00019178,2]
[347836416,1736146055716,-500.0,0.00019178,2]
[347836417,1736146055743,-654.09,0.00019178,2]
[347836418,1736146055765,-500.0,0.00019178,2]
[347836419,1736146055786,-500.0,0.00019178,2]
[347836420,1736146055808,-500.0,0.00019178,2]
[347836421,1736146055830,-500.0,0.00019178,2]
[347836422,1736146055851,-1016.53174185,0.00019178,2]
[347836423,1736146055870,-500.44528337,0.00019178,2]
[347836424,1736146055892,-500.0,0.00019178,2]
[347836425,1736146055916,-500.0,0.00019178,2]
[347836426,1736146055937,-500.0,0.00019178,2]
[347836427,1736146055958,-500.0,0.00019178,2]
[347836428,1736146055979,-500.0,0.00019178,2]
[347836429,1736146056001,-500.0,0.00019178,2]
[347836430,1736146056022,-500.0,0.00019178,2]
[347836431,1736146056044,-543.38,0.00019178,2]
[347836432,1736146056063,-504.48975836,0.00019178,2]
[347836433,1736146056083,-500.79078365,0.00019178,2]
[347836434,1736146056104,-508.88,0.00019178,2]
[347836435,1736146056124,-500.0,0.00019178,2]
[347836436,1736146056149,-500.0,0.00019178,2]
[347836437,1736146056169,-502.01128024,0.00019178,2]
[347836438,1736146056189,-278.55889494,0.00019178,2]
[347836439,1736146056210,-500.0,0.00019178,2]
[347836440,1736146056232,-1314.52,0.00019178,2]
[347836441,1736146056253,-500.0,0.00019178,2]
[347836442,1736146056274,-21293.08,0.00019178,2]
[347836443,1736146056295,-797.37,0.00019178,2]
[347836444,1736146056317,-1586.34,0.00019178,2]
[347836445,1736146056338,-500.0,0.00019178,2]
[347836446,1736146056360,-500.0,0.00019178,2]
[347836447,1736146056382,-586.17,0.00019178,2]
[347836448,1736146056404,-1000.0,0.00019178,7]
[347836449,1736146056426,-500.0,0.00019178,2]
[347836450,1736146056448,-683.85,0.00019178,2]
[347836451,1736146056471,-500.0,0.00019178,2]
[347836452,1736146056492,-500.0,0.00019178,2]
[347836453,1736146056513,-500.0,0.00019178,2]
[347836454,1736146056536,-1500.74,0.00019178,2]
[347836455,1736146056557,-500.0,0.00019178,2]
[347836456,1736146056579,-500.0,0.00019178,2]
[347836457,1736146056600,-500.0,0.00019178,2]
[347836458,1736146056622,-500.0,0.00019178,2]
[347836459,1736146056644,-500.0,0.00019178,2]
[347836460,1736146056791,-500.0,0.00019178,2]
[347836461,1736146056813,-500.0,0.00019178,2]
[347836462,1736146056835,-500.0,0.00019178,2]
[347836463,1736146056856,-772.32,0.00019178,2]
[347836464,1736146056880,-924.02,0.00019178,2]
[347836465,1736146056903,-500.0,0.00019178,2]
[347836466,1736146056925,-935.77,0.00019178,2]
[347836467,1736146056946,-500.0,0.00019178,2]
[347836468,1736146056968,-500.0,0.00019178,2]
[347836469,1736146056992,-3574.28,0.00019178,2]
[347836470,1736146057012,-523.92651939,0.00019178,2]
[347836471,1736146057033,-500.0,0.00019178,2]
[347836472,1736146057054,-500.0,0.00019178,2]
[347836473,1736146057076,-803.97,0.00019178,2]
[347836474,1736146057097,-500.0,0.00019178,2]
[347836475,1736146057117,-161.067107,0.00019178,2]
[347836476,1736146057141,-2332.74,0.0001919,3]
[347836477,1736146057163,-500.0,0.0001919,3]
[347836478,1736146057185,-2199.98,0.0001919,3]
[347836479,1736146057206,-158.961891,0.00019191,2]
[347836480,1736146057227,-158.961891,0.00019191,2]
[347836481,1736146057249,-198.043407,0.00019192,2]
[347836482,1736146057270,-198.043407,0.00019192,2]
[347836483,1736146057291,-198.043407,0.00019194,2]
[347836484,1736146057313,-198.043407,0.00019194,2]
[347836485,1736146057334,-158.961891,0.00019195,2]
[347836486,1736146057354,-158.961891,0.00019195,2]
[347836487,1736146057375,-158.961891,0.00019195,2]
[347836488,1736146057398,-158.961891,0.00019195,2]
[347836489,1736146057419,-198.043407,0.00019195,2]
[347836490,1736146057440,-198.043407,0.00019195,2]
[347836491,1736146057461,-198.043407,0.00019195,2]
[347836492,1736146057482,-198.043407,0.00019195,2]
[347836493,1736146057503,-499.0,0.00019195,2]
[347836494,1736146057523,-158.961891,0.00019196,2]
[347836495,1736146057544,-158.961891,0.00019196,2]
[347836496,1736146057565,-158.961891,0.00019196,2]
[347836497,1736146057585,-158.961891,0.00019196,2]
[347836498,1736146057607,-158.961891,0.00019196,2]
[347836499,1736146057628,-158.961891,0.00019196,2]
[347836500,1736146057650,-198.043407,0.00019196,2]
[347836501,1736146057673,-198.043407,0.00019196,2]
[347836502,1736146057697,-198.043407,0.00019196,2]
[347836503,1736146057719,-198.043407,0.00019196,2]
[347836504,1736146057742,-198.043407,0.00019196,2]
[347836505,1736146057764,-198.043407,0.00019196,2]
[347836506,1736146057785,-198.043407,0.00019196,2]
[347836507,1736146057806,-198.043407,0.00019196,2]
[347836508,1736146057826,-500.79910704,0.00019196,3]
[347836509,1736146057847,-500.0,0.00019196,3]
[347836510,1736146057868,-500.0,0.00019196,3]
[347836511,1736146057889,-500.0,0.00019196,3]
[347836512,1736146057911,-500.0,0.00019196,3]
[347836513,1736146057932,-643.73128538,0.00019196,3]
[347836514,1736146057954,-500.0,0.00019196,3]
[347836515,1736146057976,-500.0,0.00019196,3]
[347836516,1736146057998,-500.0,0.00019196,3]
[347836517,1736146058019,-212.25202159,0.00019196,2]
[347836518,1736146058041,-500.0,0.00019196,3]
[347836519,1736146058064,-500.0,0.00019196,3]
[347836520,1736146058087,-1552.54,0.00019196,3]
[347836521,1736146058109,-158.961891,0.00019197,2]
[347836522,1736146058131,-158.961891,0.00019197,2]
[347836523,1736146058152,-158.961891,0.00019197,2]
[347836524,1736146058174,-158.961891,0.00019197,2]
[347836525,1736146058195,-158.961891,0.00019197,2]
[347836526,1736146058218,-158.961891,0.00019197,2]
[347836527,1736146058239,-158.961891,0.00019197,2]
[347836528,1736146058265,-158.961886,0.00019197,2]
[347836529,1736146058293,-198.043407,0.00019197,2]
[347836530,1736146058321,-198.043407,0.00019197,2]
[347836531,1736146058346,-198.043407,0.00019197,2]
[347836532,1736146058371,-198.043416,0.00019197,2]
[347836533,1736146058399,-500.0,0.00019197,3]
[347836534,1736146058426,-500.0,0.00019197,3]
[347836535,1736146058452,-500.0,0.00019197,3]
[347836536,1736146058481,-500.0,0.00019197,3]
[347836537,1736146058509,-500.0,0.00019199,3]
[347836538,1736146058537,-7372.72,0.00019199,3]
[347836539,1736146058565,-5392.63167995,0.000192,2]
[347836540,1736146058594,-5392.63167972,0.000192,2]
[347836541,1736146058621,-5392.63167972,0.00019245,2]
[347836542,1736146058651,-485.674,0.0001929,2]
[347836543,1736146058677,-4606.22473939,0.000193,2]
[347836544,1736146058706,-4606.22473937,0.000193,2]
[347836545,1736146058734,-4606.22473937,0.000193,2]
[347836546,1736146058757,-4606.22473937,0.00019366,2]
[347836547,1736146058787,-5392.63167972,0.00019417,2]
[347836548,1736146058813,-1552.54,0.00019451,3]
[347836549,1736146058840,-500.0,0.00019452,3]
[347836550,1736146058867,-500.0,0.00019452,3]
[347836551,1736146058894,-500.0,0.00019452,3]
[347836552,1736146058922,-500.0,0.00019452,3]
[347836553,1736146058945,-500.0,0.00019452,3]
[347836554,1736146058968,-500.0,0.00019452,3]
[347836555,1736146058993,-696.96,0.00019452,3]
[347836556,1736146059019,-500.0,0.00019452,3]
[347836557,1736146059046,-500.0,0.00019452,3]
[347836558,1736146059070,-500.0,0.00019452,3]
[347836559,1736146059094,-500.0,0.00019452,3]
[347836560,1736146059119,-500.0,0.00019452,3]
[347836561,1736146059145,-500.0,0.00019452,3]
[347836562,1736146059170,-500.0,0.00019452,3]
[347836563,1736146059193,-556.42,0.00019452,3]
[347836564,1736146059216,-500.0,0.00019452,3]
[347836565,1736146059240,-500.0,0.00019452,3]
[347836566,1736146059264,-500.0,0.00019452,3]
[347836567,1736146059288,-2440.25,0.00019452,3]
[347836568,1736146059312,-500.0,0.00019452,3]
[347836569,1736146059335,-790.14,0.00019452,3]
[347836570,1736146059360,-500.0,0.00019452,3]
[347836571,1736146059387,-500.0,0.00019452,3]
[347836572,1736146059412,-500.0,0.00019452,3]
[347836573,1736146059438,-500.0,0.00019452,3]
[347836574,1736146059464,-500.0,0.00019452,3]
[347836575,1736146059490,-646.64,0.00019452,3]
[347836576,1736146059515,-500.0,0.00019452,3]
[347836577,1736146059541,-539.99,0.00019452,3]
[347836578,1736146059565,-578.19,0.00019452,3]
[347836579,1736146059589,-735.0,0.00019452,3]
[347836580,1736146059614,-500.0,0.00019452,3]
[347836581,1736146059639,-500.0,0.00019452,3]
[347836582,1736146059665,-500.0,0.00019452,3]
[347836583,1736146059695,-584.77,0.00019452,3]
[347836584,1736146059722,-500.0,0.00019452,3]
[347836585,1736146059748,-654.09,0.00019452,3]
[347836586,1736146059776,-500.0,0.00019452,3]
[347836587,1736146059802,-500.0,0.00019452,3]
[347836588,1736146059829,-500.0,0.00019452,3]
[347836589,1736146059853,-500.0,0.00019452,3]
[347836590,1736146059877,-500.0,0.00019452,3]
[347836591,1736146059903,-500.0,0.00019452,3]
[347836592,1736146059928,-500.0,0.00019452,3]
[347836593,1736146059953,-500.0,0.00019452,3]
[347836594,1736146060131,-500.0,0.00019452,3]
[347836595,1736146060152,-500.0,0.00019452,3]
[347836596,1736146060173,-543.38,0.00019452,3]
[347836597,1736146060194,-508.88,0.00019452,3]
[347836598,1736146060214,-500.0,0.00019452,3]
[347836599,1736146060236,-500.0,0.00019452,3]
[347836600,1736146060257,-500.0,0.00019452,3]
[347836601,1736146060280,-1314.52,0.00019452,3]
[347836602,1736146060301,-500.0,0.00019452,3]
[347836603,1736146060324,-21293.08,0.00019452,3]
[347836604,1736146060346,-797.37,0.00019452,3]
[347836605,1736146060368,-1586.34,0.00019452,3]
[347836606,1736146060391,-500.0,0.00019452,3]
[347836607,1736146060412,-586.17,0.00019452,3]
[347836608,1736146060434,-500.0,0.00019452,3]
[347836609,1736146060457,-500.0,0.00019452,3]
[347836610,1736146060482,-683.85,0.00019452,3]
[347836611,1736146060504,-500.0,0.00019452,3]
[347836612,1736146060524,-500.0,0.00019452,3]
[347836613,1736146060546,-500.0,0.00019452,3]
[347836614,1736146060568,-1500.74,0.00019452,3]
[347836615,1736146060589,-500.0,0.00019452,3]
[347836616,1736146060612,-500.0,0.00019452,3]
[347836617,1736146060635,-500.0,0.00019452,3]
[347836618,1736146060656,-500.0,0.00019452,3]
[347836619,1736146060680,-500.0,0.00019452,3]
[347836620,1736146060702,-500.0,0.00019452,3]
[347836621,1736146060724,-772.32,0.00019452,3]
[347836622,1736146060748,-924.02,0.00019452,3]
[347836623,1736146060771,-500.0,0.00019452,3]
[347836624,1736146060793,-935.77,0.00019452,3]
[347836625,1736146060815,-500.0,0.00019452,3]
[347836626,1736146060838,-3574.28,0.00019452,3]
[347836627,1736146060859,-500.0,0.00019452,3]
[347836628,1736146060880,-500.0,0.00019452,3]
[347836629,1736146060901,-803.97,0.00019452,3]
[347836630,1736146060927,-2332.74,0.00019464,3]
[347836631,1736146060949,-500.0,0.00019464,3]
[347836632,1736146060974,-2199.98,0.00019464,3]
[347836633,1736146060996,-1552.54,0.00019465,3]
[347836634,1736146061018,-1552.54,0.00019465,3]
[347836635,1736146061039,-1552.54,0.00019465,3]
[347836636,1736146061060,-500.0,0.0001947,3]
[347836637,1736146061081,-500.0,0.0001947,3]
[347836638,1736146061102,-500.0,0.0001947,3]
[347836639,1736146061123,-500.0,0.0001947,3]
[347836640,1736146061144,-594.38222614,0.0001947,3]
[347836641,1736146061165,-500.0,0.0001947,3]
[347836642,1736146061186,-500.0,0.00019471,3]
[347836643,1736146061207,-500.0,0.00019471,3]
[347836644,1736146061230,-500.0,0.00019471,3]
[347836645,1736146061250,-500.0,0.00019473,2]
[347836646,1736146061270,-500.0,0.00019473,3]
[347836647,1736146061293,-7372.72,0.00019473,3]
[347836648,1736146061315,-1552.54,0.00019484,3]
[347836649,1736146061336,-302.84859387,0.00019545,2]
[347836650,1736146061360,-5392.63167972,0.0001959,2]
[347836651,1736146061382,-446.12652669,0.00019637,2]
[347836652,1736146061402,-202.07008274,0.00019714,2]
[347836653,1736146061423,-500.0,0.00019726,3]
[347836654,1736146061446,-188.26117312,0.00019726,3]
[347836655,1736146061468,-500.0,0.00019726,3]
[347836656,1736146061489,-500.0,0.00019726,3]
[347836657,1736146061511,-500.0,0.00019726,3]
[347836658,1736146061532,-696.96,0.00019726,3]
[347836659,1736146061553,-500.0,0.00019726,3]
[347836660,1736146061574,-500.0,0.00019726,3]
[347836661,1736146061596,-500.0,0.00019726,3]
[347836662,1736146061617,-500.0,0.00019726,3]
[347836663,1736146061641,-297.12,0.00019726,3]
[347836664,1736146061663,-500.0,0.00019726,3]
[347836665,1736146061685,-500.0,0.00019726,3]
[347836666,1736146061707,-500.0,0.00019726,3]
[347836667,1736146061733,-500.0,0.00019726,3]
[347836668,1736146061755,-2440.25,0.00019726,3]
[347836669,1736146061776,-462.33823733,0.00019726,3]
[347836670,1736146061798,-790.14,0.00019726,3]
[347836671,1736146061819,-500.0,0.00019726,3]
[347836672,1736146061840,-500.0,0.00019726,3]
[347836673,1736146061862,-500.0,0.00019726,3]
[347836674,1736146061884,-500.0,0.00019726,3]
[347836675,1736146061907,-500.0,0.00019726,3]
[347836676,1736146061928,-646.64,0.00019726,3]
[347836677,1736146061951,-500.0,0.00019726,3]
[347836678,1736146061975,-539.99,0.00019726,3]
[347836679,1736146061997,-578.19,0.00019726,3]
[347836680,1736146062019,-735.0,0.00019726,3]
[347836681,1736146062040,-500.0,0.00019726,3]
[347836682,1736146062062,-500.0,0.00019726,3]
[347836683,1736146062085,-500.0,0.00019726,3]
[347836684,1736146062107,-584.77,0.00019726,3]
[347836685,1736146062128,-500.0,0.00019726,3]
[347836686,1736146062150,-654.09,0.00019726,3]
[347836687,1736146062172,-500.0,0.00019726,3]
[347836688,1736146062193,-500.0,0.00019726,3]
[347836689,1736146062214,-500.0,0.00019726,3]
[347836690,1736146062235,-500.0,0.00019726,3]
[347836691,1736146062256,-500.0,0.00019726,3]
[347836692,1736146062278,-500.0,0.00019726,3]
[347836693,1736146062300,-500.0,0.00019726,3]
[347836694,1736146062321,-500.0,0.00019726,3]
[347836695,1736146062342,-500.0,0.00019726,3]
[347836696,1736146062363,-543.38,0.00019726,3]
[347836697,1736146062385,-508.88,0.00019726,3]
[347836698,1736146062407,-500.0,0.00019726,3]
[347836699,1736146062429,-1314.52,0.00019726,3]
[347836700,1736146062451,-500.0,0.00019726,3]
[347836701,1736146062473,-21293.08,0.00019726,3]
[347836702,1736146062495,-797.37,0.00019726,3]
[347836703,1736146062516,-1586.34,0.00019726,3]
[347836704,1736146062539,-500.0,0.00019726,3]
[347836705,1736146062561,-586.17,0.00019726,3]
[347836706,1736146062584,-500.0,0.00019726,3]
[347836707,1736146062608,-683.85,0.00019726,3]
[347836708,1736146062630,-554.74,0.00019726,3]
[347836709,1736146062652,-500.0,0.00019726,3]
[347836710,1736146062676,-500.0,0.00019726,3]
[347836711,1736146062699,-1500.74,0.00019726,3]
[347836712,1736146062723,-500.0,0.00019726,3]
[347836713,1736146062746,-500.0,0.00019726,3]
[347836714,1736146062770,-500.0,0.00019726,3]
[347836715,1736146062791,-500.0,0.00019726,3]
[347836716,1736146062812,-500.0,0.00019726,3]
[347836717,1736146062833,-772.32,0.00019726,3]
[347836718,1736146062856,-924.02,0.00019726,3]
[347836719,1736146062878,-935.77,0.00019726,3]
[347836720,1736146062901,-230.78,0.00019726,3]
[347836721,1736146062924,-3574.28,0.00019726,3]
[347836722,1736146062945,-285.19444837,0.00019726,3]
[347836723,1736146062968,-2332.74,0.00019738,3]
[347836724,1736146062990,-500.0,0.00019738,3]
[347836725,1736146063012,-2199.98,0.00019738,3]
[347836726,1736146063034,-1552.54,0.00019739,3]